Workbook

Sheet 工程技术管理员（房建）（01）
A1: 岗位 | B1: 手机号（联系电话） | C1: 身份证号 | D1: 二轮面试抽签号 | E1: 一轮面试成绩 | F1: 二轮面试成绩 | G1: 综合成绩 | H1: 排名
A2: 工程技术管理员（房建） | B2: 188****7129 | C2: 341227********5616 | D2: 19 | E2: 86.67 | F2: 88.00 | G2: =E2*30%+F2*70% -> 87.60 | H2: =RANK(G2,G:G,0) -> 1
A3: 工程技术管理员（房建） | B3: 184****0695 | C3: 341225********1216 | D3: 02 | E3: 86.00 | F3: 86.00 | G3: 86.00 | H3: =RANK(G3,G:G,0) -> 2
A4: 工程技术管理员（房建） | B4: 188****8303 | C4: 341203********3719 | D4: 10 | E4: 82.67 | F4: 87.33 | G4: 85.93 | H4: =RANK(G4,G:G,0) -> 3
A5: 工程技术管理员（房建） | B5: 191****9768 | C5: 341222********5277 | D5: 05 | E5: 84.67 | F5: 85.33 | G5: 85.13 | H5: =RANK(G5,G:G,0) -> 4
A6: 工程技术管理员（房建） | B6: 187****6759 | C6: 341202********1314 | D6: 16 | E6: 86.00 | F6: 84.00 | G6: 84.60 | H6: =RANK(G6,G:G,0) -> 5
A7: 工程技术管理员（房建） | B7: 181****5703 | C7: 341204********1610 | D7: 12 | E7: 82.67 | F7: 85.33 | G7: 84.53 | H7: =RANK(G7,G:G,0) -> 6
A8: 工程技术管理员（房建） | B8: 131****3177 | C8: 429006********7751 | D8: 08 | E8: 79.00 | F8: 83.33 | G8: 82.03 | H8: =RANK(G8,G:G,0) -> 7
A9: 工程技术管理员（房建） | B9: 183****9075 | C9: 341203********0618 | D9: 14 | E9: 85.33 | F9: 78.00 | G9: 80.20 | H9: =RANK(G9,G:G,0) -> 8
A10: 工程技术管理员（房建） | B10: 199****3330 | C10: 341204********1211 | D10: 01 | E10: 79.00 | F10: 79.33 | G10: 79.23 | H10: =RANK(G10,G:G,0) -> 9
A11: 工程技术管理员（房建） | B11: 130****0272 | C11: 340123********1092 | D11: 11 | E11: 85.00 | F11: 76.33 | G11: 78.93 | H11: =RANK(G11,G:G,0) -> 10
A12: 工程技术管理员（房建） | B12: 183****2717 | C12: 341226********6714 | D12: 03 | E12: 83.33 | F12: 77.00 | G12: 78.90 | H12: =RANK(G12,G:G,0) -> 11
A13: 工程技术管理员（房建） | B13: 199****0360 | C13: 341202********0219 | D13: 22 | E13: 79.67 | F13: 76.67 | G13: 77.57 | H13: =RANK(G13,G:G,0) -> 12
A14: 工程技术管理员（房建） | B14: 156****7287 | C14: 341227********4432 | D14: 18 | E14: 82.67 | F14: 75.00 | G14: 77.30 | H14: =RANK(G14,G:G,0) -> 13
A15: 工程技术管理员（房建） | B15: 177****5550 | C15: 341221********6794 | D15: 21 | E15: 80.33 | F15: 76.00 | G15: 77.30 | H15: =RANK(G15,G:G,0) -> 13
A16: 工程技术管理员（房建） | B16: 182****9830 | C16: 341204********2036 | D16: 20 | E16: 78.67 | F16: 76.00 | G16: 76.80 | H16: =RANK(G16,G:G,0) -> 15
A17: 工程技术管理员（房建） | B17: 130****6895 | C17: 341226********5254 | D17: 06 | E17: 80.00 | F17: 75.33 | G17: 76.73 | H17: =RANK(G17,G:G,0) -> 16
A18: 工程技术管理员（房建） | B18: 155****2777 | C18: 341225********1294 | D18: 07 | E18: 80.67 | F18: 75.00 | G18: 76.70 | H18: =RANK(G18,G:G,0) -> 17
A19: 工程技术管理员（房建） | B19: 173****5800 | C19: 341204********0614 | D19: 09 | E19: 80.00 | F19: 74.67 | G19: 76.27 | H19: =RANK(G19,G:G,0) -> 18
A20: 工程技术管理员（房建） | B20: 181****3211 | C20: 341224********1519 | D20: 15 | E20: 82.33 | F20: 73.67 | G20: 76.27 | H20: =RANK(G20,G:G,0) -> 18
A21: 工程技术管理员（房建） | B21: 156****1879 | C21: 341226********4257 | D21: 17 | E21: 81.33 | F21: 73.67 | G21: 75.97 | H21: =RANK(G21,G:G,0) -> 20
A22: 工程技术管理员（房建） | B22: 158****1653 | C22: 341203********1212 | D22: 13 | E22: 81.67 | F22: 73.00 | G22: 75.60 | H22: =RANK(G22,G:G,0) -> 21
A23: 工程技术管理员（房建） | B23: 156****0310 | C23: 340826********3639 | D23: 04 | E23: 77.00 | F23: 72.67 | G23: 73.97 | H23: =RANK(G23,G:G,0) -> 22
A24: 工程技术管理员（房建） | B24: 188****0693 | C24: 341203********4530 | D24: / | E24: 80.67 | F24: / | G24: / | H24: 放弃二面
A25: 工程技术管理员（房建） | B25: 182****9531 | C25: 340602********2498 | D25: / | E25: 80.00 | F25: / | G25: / | H25: 放弃二面
A26: 工程技术管理员（房建） | B26: 135****2164 | C26: 340621********5237 | D26: / | E26: 76.00 | F26: / | G26: / | H26: 放弃二面

Sheet 工程技术管理员（安装）（02）
A1: 岗位 | B1: 手机号（联系电话） | C1: 身份证号 | D1: 二轮面试抽签号 | E1: 一轮面试成绩 | F1: 二轮面试成绩 | G1: 综合成绩 | H1: 排名
A2: 工程技术管理员（安装） | B2: 155****8819 | C2: 341225********7719 | D2: 02 | E2: 81.33 | F2: 73.67 | G2: =E2*30%+F2*70% -> 75.97 | H2: 1
A3: 工程技术管理员（安装） | B3: 155****7707 | C3: 341202********0217 | D3: 03 | E3: 79.00 | F3: 72.00 | G3: =E3*30%+F3*70% -> 74.10 | H3: 2
A4: 工程技术管理员（安装） | B4: 171****7822 | C4: 340121********7619 | D4: 01 | E4: 74.00 | F4: 73.33 | G4: =E4*30%+F4*70% -> 73.53 | H4: 3
A5: 工程技术管理员（安装） | B5: 153****3737 | C5: 341221********8719 | D5: / | E5: / | F5: / | G5: / | H5: 放弃面试
A6: 工程技术管理员（安装） | B6: 152****6975 | C6: 341225********2177 | D6: / | E6: / | F6: / | G6: / | H6: 放弃面试
A7: 工程技术管理员（安装） | B7: 153****9029 | C7: 342622********0238 | D7: / | E7: / | F7: / | G7: / | H7: 放弃面试

Sheet 工程测量员（03）
A1: 岗位 | B1: 手机号（联系电话） | C1: 身份证号 | D1: 二轮面试抽签号 | E1: 一轮面试成绩 | F1: 二轮面试成绩 | G1: 综合成绩 | H1: 排名
A2: 工程测量管理员 | B2: 182****1858 | C2: 341204********123X | D2: 03 | E2: 81.00 | F2: 86.67 | G2: =E2*30%+F2*70% -> 84.97 | H2: 1
A3: 工程测量管理员 | B3: 173****5009 | C3: 341225********7550 | D3: 02 | E3: 79.33 | F3: 80.33 | G3: =E3*30%+F3*70% -> 80.03 | H3: 2
A4: 工程测量管理员 | B4: 133****1270 | C4: 341282********7750 | D4: 04 | E4: 82.33 | F4: 74.00 | G4: =E4*30%+F4*70% -> 76.50 | H4: 3
A5: 工程测量管理员 | B5: 198****3326 | C5: 342222********7230 | D5: 01 | E5: 77.00 | F5: 72.33 | G5: =E5*30%+F5*70% -> 73.73 | H5: 4
A6: 工程测量管理员 | B6: 183****1936 | C6: 341226********5958 | D6: / | E6: / | F6: / | G6: / | H6: 放弃面试
A7: 工程测量管理员 | B7: 151****0923 | C7: 341202********3313 | D7: / | E7: / | F7: / | G7: / | H7: 放弃面试

Sheet 安全员（04）
A1: 岗位 | B1: 手机号（联系电话） | C1: 身份证号 | D1: 二轮面试抽签号 | E1: 一轮面试成绩 | F1: 二轮面试成绩 | G1: 综合成绩 | H1: 排名
A2: 安全员 | B2: 139****9208 | C2: 341227********8338 | D2: 01 | E2: 84.00 | F2: 86.00 | G2: =E2*30%+F2*70% -> 85.40 | H2: 1
A3: 安全员 | B3: 183****1250 | C3: 341202********2959 | D3: 06 | E3: 84.00 | F3: 85.33 | G3: 84.93 | H3: 2
A4: 安全员 | B4: 185****6742 | C4: 341202********1312 | D4: 04 | E4: 79.00 | F4: 83.33 | G4: 82.03 | H4: 3
A5: 安全员 | B5: 183****3875 | C5: 341222********2799 | D5: 02 | E5: 78.33 | F5: 76.00 | G5: 76.70 | H5: 4
A6: 安全员 | B6: 188****3036 | C6: 341225********9236 | D6: 05 | E6: 77.33 | F6: 76.33 | G6: 76.63 | H6: 5
A7: 安全员 | B7: 183****8285 | C7: 341204********0058 | D7: 03 | E7: 80.33 | F7: 74.67 | G7: 76.37 | H7: 6

Sheet 项目财务（05）
A1: 岗位 | B1: 手机号（联系电话） | C1: 身份证号 | D1: 二轮面试抽签号 | E1: 一轮面试成绩 | F1: 二轮面试成绩 | G1: 综合成绩 | H1: 排名
A2: 项目财务 | B2: 153****0678 | C2: 341226********6116 | D2: 01 | E2: 87.33 | F2: 88.33 | G2: =E2*30%+F2*70% -> 88.03 | H2: 1
A3: 项目财务 | B3: 182****1890 | C3: 341225********5138 | D3: 05 | E3: 86.67 | F3: 86.33 | G3: =E3*30%+F3*70% -> 86.43 | H3: 2
A4: 项目财务 | B4: 136****3546 | C4: 341203********4425 | D4: 03 | E4: 84.67 | F4: 83.00 | G4: =E4*30%+F4*70% -> 83.50 | H4: 3
A5: 项目财务 | B5: 189****5107 | C5: 341204********0666 | D5: 04 | E5: 85.00 | F5: 78.33 | G5: =E5*30%+F5*70% -> 80.33 | H5: 4
A6: 项目财务 | B6: 159****7873 | C6: 341204********1613 | D6: 02 | E6: 83.33 | F6: 75.33 | G6: =E6*30%+F6*70% -> 77.73 | H6: 5

Sheet 工程造价员（06）
A1: 岗位 | B1: 手机号（联系电话） | C1: 身份证号 | D1: 二轮面试抽签号 | E1: 一轮面试成绩 | F1: 二轮面试成绩 | G1: 综合成绩 | H1: 排名
A2: 工程造价员 | B2: 158****3870 | C2: 341221********6298 | D2: 14 | E2: 81.33 | F2: 85.33 | G2: =E2*30%+F2*70% -> 84.13 | H2: =RANK(G2,G:G,0) -> 1
A3: 工程造价员 | B3: 153****5125 | C3: 341204********0013 | D3: 06 | E3: 79.67 | F3: 86.00 | G3: 84.10 | H3: =RANK(G3,G:G,0) -> 2
A4: 工程造价员 | B4: 157****1512 | C4: 341203********3110 | D4: 11 | E4: 80.33 | F4: 84.33 | G4: 83.13 | H4: =RANK(G4,G:G,0) -> 3
A5: 工程造价员 | B5: 153****5006 | C5: 341225********7934 | D5: 07 | E5: 76.00 | F5: 83.33 | G5: 81.13 | H5: =RANK(G5,G:G,0) -> 4
A6: 工程造价员 | B6: 186****9522 | C6: 341282********4912 | D6: 05 | E6: 82.00 | F6: 80.33 | G6: 80.83 | H6: =RANK(G6,G:G,0) -> 5
A7: 工程造价员 | B7: 155****8807 | C7: 341202********1727 | D7: 02 | E7: 79.67 | F7: 81.00 | G7: 80.60 | H7: =RANK(G7,G:G,0) -> 6
A8: 工程造价员 | B8: 155****9723 | C8: 341225********0431 | D8: 16 | E8: 78.33 | F8: 81.00 | G8: 80.20 | H8: =RANK(G8,G:G,0) -> 7
A9: 工程造价员 | B9: 199****1711 | C9: 341202********3319 | D9: 17 | E9: 77.33 | F9: 80.67 | G9: 79.67 | H9: =RANK(G9,G:G,0) -> 8
A10: 工程造价员 | B10: 159****9868 | C10: 341202********2951 | D10: 01 | E10: 80.67 | F10: 76.33 | G10: 77.63 | H10: =RANK(G10,G:G,0) -> 9
A11: 工程造价员 | B11: 139****2956 | C11: 342425********4060 | D11: 03 | E11: 78.00 | F11: 76.67 | G11: 77.07 | H11: =RANK(G11,G:G,0) -> 10
A12: 工程造价员 | B12: 180****0380 | C12: 341222********3876 | D12: 12 | E12: 78.33 | F12: 76.33 | G12: 76.93 | H12: =RANK(G12,G:G,0) -> 11
A13: 工程造价员 | B13: 155****0131 | C13: 341222********3013 | D13: 13 | E13: 80.00 | F13: 75.33 | G13: 76.73 | H13: =RANK(G13,G:G,0) -> 12
A14: 工程造价员 | B14: 132****5225 | C14: 341204********0223 | D14: 09 | E14: 78.00 | F14: 76.00 | G14: 76.60 | H14: =RANK(G14,G:G,0) -> 13
A15: 工程造价员 | B15: 189****6639 | C15: 341203********0915 | D15: 10 | E15: 77.00 | F15: 76.33 | G15: 76.53 | H15: =RANK(G15,G:G,0) -> 14
A16: 工程造价员 | B16: 182****8097 | C16: 341226********676X | D16: 08 | E16: 78.67 | F16: 74.33 | G16: 75.63 | H16: =RANK(G16,G:G,0) -> 15
A17: 工程造价员 | B17: 181****1106 | C17: 341222********1015 | D17: 15 | E17: 77.00 | F17: 74.33 | G17: 75.13 | H17: =RANK(G17,G:G,0) -> 16
A18: 工程造价员 | B18: 136****1575 | C18: 341204********0622 | D18: 04 | E18: 76.00 | F18: 73.67 | G18: 74.37 | H18: =RANK(G18,G:G,0) -> 17
A19: 工程造价员 | B19: 191****4219 | C19: 341225********0817 | D19: / | E19: / | F19: / | G19: / | H19: 放弃面试
A20: 工程造价员 | B20: 158****7023 | C20: 340825********3719 | D20: / | E20: / | F20: / | G20: / | H20: 放弃面试
A21: 工程造价员 | B21: 183****8655 | C21: 341222********4358 | D21: / | E21: / | F21: / | G21: / | H21: 放弃面试
A22: 工程造价员 | B22: 139****0703 | C22: 341221********5792 | D22: / | E22: / | F22: / | G22: / | H22: 放弃面试
A23: 工程造价员 | B23: 151****2771 | C23: 341204********1289 | D23: / | E23: / | F23: / | G23: / | H23: 放弃面试
A24: 工程造价员 | B24: 177****3588 | C24: 341225********2071 | D24: / | E24: / | F24: / | G24: / | H24: 放弃面试
A25: 工程造价员 | B25: 182****5506 | C25: 341204********1611 | D25: / | E25: 76.33 | F25: / | G25: / | H25: 放弃二面
A26: 工程造价员 | B26: 188****9701 | C26: 341226********2958 | D26: / | E26: 75.67 | F26: / | G26: / | H26: 放弃二面
A27: 工程造价员 | B27: 182****8129 | C27: 340826********6034 | D27: / | E27: 73.00 | F27: / | G27: / | H27: 放弃二面

Sheet 人力资源专员（07）
A1: 岗位 | B1: 手机号（联系电话） | C1: 身份证号 | D1: 二轮面试抽签号 | E1: 一轮面试成绩 | F1: 二轮面试成绩 | G1: 综合成绩 | H1: 排名
A2: 人力资源专员 | B2: 176****5925 | C2: 341203********4456 | D2: 06 | E2: 84.00 | F2: 89.67 | G2: =E2*30%+F2*70% -> 87.97 | H2: 1
A3: 人力资源专员 | B3: 153****4494 | C3: 341204********0850 | D3: 04 | E3: 79.00 | F3: 86.33 | G3: 84.13 | H3: 2
A4: 人力资源专员 | B4: 152****1747 | C4: 341204********062X | D4: 05 | E4: 82.67 | F4: 83.67 | G4: 83.37 | H4: 3
A5: 人力资源专员 | B5: 131****0105 | C5: 341202********0543 | D5: 03 | E5: 82.33 | F5: 78.00 | G5: 79.30 | H5: 4
A6: 人力资源专员 | B6: 152****0053 | C6: 341621********474X | D6: 01 | E6: 77.00 | F6: 79.67 | G6: 78.87 | H6: 5
A7: 人力资源专员 | B7: 182****6067 | C7: 341203********1930 | D7: 02 | E7: 77.67 | F7: 77.33 | G7: 77.43 | H7: 6
A8: 人力资源专员 | B8: 188****7765 | C8: 341225********0858 | D8: / | E8: 84.33 | F8: / | G8: / | H8: 放弃二面
A9: 人力资源专员 | B9: 182****8407 | C9: 341221********1297 | D9: / | E9: 79.67 | F9: / | G9: / | H9: 放弃二面
A10: 人力资源专员 | B10: 198****7696 | C10: 341203********3414 | D10: / | E10: 76.67 | F10: / | G10: / | H10: 放弃二面
A11: 人力资源专员 | B11: 138****7932 | C11: 341202********2742 | D11: / | E11: 76.33 | F11: / | G11: / | H11: 放弃二面

Sheet 合规专员（08）
A1: 岗位 | B1: 手机号（联系电话） | C1: 身份证号 | D1: 二轮面试抽签号 | E1: 一轮面试成绩 | F1: 二轮面试成绩 | G1: 综合成绩 | H1: 排名
A2: 合规专员 | B2: 199****9373 | C2: 341282********2425 | D2: 03 | E2: 82.33 | F2: 82.33 | G2: =E2*30%+F2*70% -> 82.33 | H2: 1
A3: 合规专员 | B3: 134****0674 | C3: 340803********2214 | D3: 01 | E3: 79.67 | F3: 76.67 | G3: =E3*30%+F3*70% -> 77.57 | H3: 2
A4: 合规专员 | B4: 182****6054 | C4: 341204********1844 | D4: 02 | E4: 76.67 | F4: 77.33 | G4: =E4*30%+F4*70% -> 77.13 | H4: 3
